bitfinex-derivatives/quotes_BTCF0:USTF0_20251230
["timestamp","ask_amount","ask_price","bid_price","bid_amount"]
[1767136304250,0.15276,88548.0,88533.0,0.0113084]
[1767136305345,0.0113075,88541.0,88526.0,0.00016945]
[1767136305552,0.12419176,88540.0,88526.0,0.00016945]
[1767136305752,0.05664,88541.0,88526.0,0.00016945]
[1767136307653,0.05664,88541.0,88527.0,0.0113093]
[1767136310548,0.05664,88541.0,88527.0,0.07203587]
[1767136311950,0.05664,88541.0,88530.0,0.13550056]
[1767136312349,0.05664,88541.0,88530.0,0.0113088]
[1767136312848,0.05664,88541.0,88528.0,0.06072657]
[1767136313860,0.0113067,88547.0,88528.0,0.06072657]
[1767136314156,0.15272,88546.0,88528.0,0.06072657]
[1767136314356,0.15272,88546.0,88531.0,0.0113087]
[1767136314743,0.15272,88546.0,88530.0,0.06072657]
[1767136314954,0.15272,88546.0,88533.0,0.0113084]
[1767136315856,0.0113081,88537.0,88507.0,0.10126542]
[1767136316053,0.15272,88536.0,88518.0,0.0113103]
[1767136316857,0.15288945,88536.0,88518.0,0.01147975]
[1767136317451,0.15288945,88536.0,88520.0,0.12419176]
[1767136317651,0.15288945,88536.0,88521.0,0.01131]
[1767136318553,0.15288945,88536.0,88518.0,0.01147975]
[1767136319356,0.0113083,88535.0,88518.0,0.00016945]
[1767136320246,0.12419176,88530.0,88518.0,0.00016945]
[1767136320451,0.05664,88530.0,88510.0,0.13550316]
[1767136320746,0.18083176,88530.0,88504.0,0.04542205]
[1767136320951,0.18083176,88530.0,88510.0,0.12419176]
[1767136321157,0.18083176,88530.0,88510.0,0.21424227]
[1767136321461,0.18083176,88530.0,88511.0,0.00016945]
[1767136322163,0.18083176,88530.0,88512.0,0.0113111]
[1767136322564,0.05664,88530.0,88511.0,0.00016945]
[1767136322864,0.18083176,88530.0,88511.0,0.00016945]
[1767136323449,0.05664,88530.0,88511.0,0.00016945]
[1767136324064,0.05664,88530.0,88514.0,0.0113108]
[1767136324658,0.18083176,88530.0,88511.0,0.00016945]
[1767136324858,0.0113092,88528.0,88511.0,0.00016945]
[1767136325767,0.05664,88530.0,88512.0,0.0113111]
[1767136325964,0.05664,88530.0,88514.0,0.0113108]
[1767136326164,0.18083176,88530.0,88511.0,0.01148075]
[1767136326659,0.05664,88530.0,88511.0,0.00016945]
[1767136328068,0.05664,88530.0,88515.0,0.0113107]
[1767136328871,0.05664,88530.0,88511.0,0.00016945]
[1767136329361,0.05664,88530.0,88521.0,0.01131]
[1767136331363,0.05664,88530.0,88523.0,0.0113097]
[1767136333371,0.05664,88530.0,88511.0,0.00016945]
[1767136333670,0.05664,88530.0,88523.0,0.0113097]
[1767136334070,0.05664,88530.0,88511.0,0.00016945]
[1767136334264,0.18083176,88530.0,88511.0,0.00016945]
[1767136334768,0.18083176,88530.0,88512.0,0.0113112]
[1767136334974,0.18083176,88530.0,88508.0,0.05664]
[1767136336170,0.18083176,88530.0,88512.0,0.0113112]
[1767136337469,0.12419176,88522.0,88498.0,0.09612]
[1767136337670,0.05664,88521.0,88506.0,0.0113119]
[1767136337873,0.05664,88521.0,88508.0,0.0113117]
[1767136340276,0.05664,88521.0,88505.0,0.0113121]
[1767136340873,0.12419176,88520.0,88498.0,0.09612]
[1767136341074,0.0113108,88516.0,88498.0,0.18657173]
[1767136341378,0.05664,88515.0,88498.0,0.19788463]
[1767136342079,0.05664,88515.0,88500.0,0.0113127]
[1767136342471,0.05664,88515.0,88498.0,0.18657173]
[1767136343480,0.05664,88515.0,88498.0,0.09612]
[1767136343674,0.12419176,88510.0,88494.0,0.05664]
[1767136343881,0.05664,88509.0,88494.0,0.05664]
[1767136344274,0.05664,88509.0,88493.0,0.0113136]
[1767136344777,0.05664,88509.0,88489.0,0.09612]
[1767136344982,0.05664,88509.0,88497.0,0.011313]
[1767136345381,0.01147995,88518.0,88497.0,0.011313]
[1767136345682,0.15276,88517.0,88497.0,0.011313]
[1767136347889,0.0113107,88516.0,88497.0,0.011313]
[1767136350282,0.0113107,88516.0,88499.0,0.0113128]
[1767136350885,0.12419176,88510.0,88490.0,0.12419176]
[1767136351085,0.05664,88509.0,88490.0,0.12419176]
[1767136352189,0.05664,88509.0,88489.0,0.18759223]
[1767136352377,0.05664,88509.0,88490.0,0.12419176]
[1767136353190,0.05664,88509.0,88495.0,0.0113133]
[1767136353583,0.12419176,88510.0,88490.0,0.12419176]
[1767136353789,0.09612,88512.0,88500.0,0.12419176]
[1767136354090,0.09612,88512.0,88503.0,0.0113122]
[1767136354484,0.00016945,88518.0,88503.0,0.0113122]
[1767136354794,0.05664,88517.0,88503.0,0.0113122]
[1767136355986,0.05664,88516.0,88503.0,0.0113122]
[1767136356492,0.00016945,88518.0,88503.0,0.0113122]
[1767136356693,0.15276,88517.0,88503.0,0.0113122]
[1767136357186,0.15276,88517.0,88505.0,0.011312]
[1767136357982,0.05664,88519.0,88507.0,0.12419176]
[1767136358183,0.05664,88520.0,88500.0,0.12419176]
[1767136358388,0.05664,88520.0,88509.0,0.0113115]
[1767136359694,0.05664,88520.0,88510.0,0.12419176]
[1767136360495,0.05664,88520.0,88511.0,0.0113113]
[1767136361094,0.05664,88520.0,88513.0,0.011311]
[1767136362394,0.05664,88520.0,88510.0,0.0113114]
[1767136362693,0.05664,88520.0,88510.0,0.13550316]
[1767136363188,0.09628945,88523.0,88510.0,0.12419176]
[1767136363393,0.05664,88522.0,88510.0,0.12419176]
[1767136364195,0.05664,88522.0,88513.0,0.0113111]
[1767136366997,0.05664,88522.0,88510.0,0.0113114]
[1767136368298,0.05664,88522.0,88507.0,0.0113118]
[1767136368498,0.05664,88522.0,88506.0,0.00016945]
[1767136369300,0.05664,88522.0,88506.0,0.01148135]
[1767136374904,0.05664,88522.0,88511.0,0.0113112]
[1767136375599,0.00016945,88523.0,88506.0,0.00016945]
[1767136375807,0.06079775,88551.0,88522.0,0.0113098]
[1767136375991,0.0113076,88541.0,88522.0,0.0113098]
[1767136376192,0.05664,88547.0,88520.0,0.09612]
[1767136376395,0.02613013,88546.0,88520.0,0.09612]
[1767136376593,0.05664,88547.0,88520.0,0.09612]
[1767136376792,0.00016945,88542.0,88525.0,0.00016945]
[1767136377199,0.00016945,88542.0,88529.0,0.0113089]
[1767136380318,0.00016945,88542.0,88526.0,0.05668]
[1767136380319,0.00016945,88542.0,88527.0,0.0113092]
[1767136380522,0.0113075,88541.0,88520.0,0.0113101]
[1767136380719,0.09612,88541.0,88513.0,0.0113111]
[1767136380926,0.0113087,88532.0,88514.0,0.15276]
[1767136381221,0.0113083,88535.0,88514.0,0.15276]
[1767136381428,0.0113083,88535.0,88515.0,0.0113108]
[1767136381627,0.0113086,88533.0,88516.0,0.00016945]
[1767136381814,0.05664,88536.0,88512.0,0.05664]
[1767136382014,0.05664,88536.0,88511.0,0.05664]
[1767136382216,0.0113092,88528.0,88509.0,0.05664]
[1767136382619,0.0113092,88528.0,88510.0,0.0113114]
[1767136382817,0.01147865,88528.0,88510.0,0.0113114]
[1767136383229,0.00016945,88528.0,88512.0,0.0113111]
[1767136383429,0.00016945,88528.0,88509.0,0.05664]
[1767136385235,0.00016945,88528.0,88513.0,0.011311]
[1767136386430,0.00016945,88528.0,88510.0,0.0113114]
[1767136386931,0.00016945,88528.0,88512.0,0.0113111]
[1767136390334,0.00016945,88528.0,88509.0,0.05664]
[1767136391432,0.00016945,88528.0,88514.0,0.0113108]
[1767136392234,0.00016945,88528.0,88515.0,0.0113108]
[1767136394934,0.00016945,88528.0,88509.0,0.05664]
[1767136396335,0.00016945,88528.0,88510.0,0.0113114]
[1767136398930,0.00016945,88528.0,88509.0,0.05664]
[1767136400236,0.00016945,88528.0,88513.0,0.011311]
[1767136417346,0.00016945,88528.0,88515.0,0.0113107]
[1767136418447,0.0113093,88527.0,88513.0,0.011311]
[1767136418642,0.00016945,88528.0,88514.0,0.0113109]
[1767136420048,0.00016945,88528.0,88511.0,0.05664]
[1767136420547,0.00016945,88528.0,88517.0,0.0113105]
[1767136422045,0.00016945,88528.0,88511.0,0.05664]
[1767136422236,0.05664,88542.0,88527.0,0.0113092]
[1767136422436,0.03747012,88541.0,88520.0,0.0113102]
[1767136422641,0.02616262,88540.0,88520.0,0.0113102]
[1767136422844,0.02616262,88539.0,88520.0,0.0113102]
[1767136423052,0.02616262,88538.0,88520.0,0.0113102]
[1767136423248,0.02616262,88537.0,88520.0,0.01147965]
[1767136424050,0.00016945,88538.0,88520.0,0.01147965]
[1767136424051,0.00016945,88538.0,88523.0,0.0113097]
[1767136429253,0.00016945,88538.0,88520.0,0.13570927]
[1767136431155,0.011308,88537.0,88520.0,0.01147965]
[1767136431352,0.00016945,88538.0,88520.0,0.00016945]
[1767136431353,0.02604515,88536.0,88520.0,0.00016945]
[1767136431652,0.12422962,88530.0,88520.0,0.00016945]
[1767136432445,0.13553862,88530.0,88520.0,0.00016945]
[1767136432846,0.011309,88530.0,88520.0,0.00016945]
[1767136433042,0.0113086,88533.0,88520.0,0.00016945]
[1767136433666,0.12422962,88530.0,88520.0,0.00016945]
[1767136434268,0.00016945,88538.0,88520.0,0.00016945]
[1767136434458,0.02604565,88537.0,88520.0,0.00016945]
[1767136434658,0.02604565,88536.0,88520.0,0.00016945]
[1767136434863,0.02604565,88535.0,88520.0,0.00016945]
[1767136435065,0.02604565,88534.0,88520.0,0.00016945]
[1767136435364,0.00016945,88538.0,88520.0,0.00016945]
[1767136435565,0.02604572,88537.0,88520.0,0.00016945]
[1767136435758,0.02604572,88536.0,88520.0,0.00016945]
[1767136435964,0.02604572,88535.0,88520.0,0.00016945]
[1767136436263,0.0113087,88532.0,88520.0,0.00016945]
[1767136438871,0.0113092,88528.0,88520.0,0.00016945]
[1767136440470,0.0113088,88531.0,88520.0,0.00016945]
[1767136440670,0.0113091,88529.0,88520.0,0.00016945]
[1767136442172,0.0113088,88531.0,88520.0,0.00016945]
[1767136443972,0.09612,88537.0,88520.0,0.00016945]
[1767136444173,0.0113082,88536.0,88520.0,0.00016945]
[1767136444969,0.0113082,88536.0,88520.0,0.01147955]
[1767136445574,0.0113082,88536.0,88520.0,0.00016945]
[1767136446575,0.1074281,88537.0,88520.0,0.00016945]
[1767136446772,0.02604489,88536.0,88520.0,0.00016945]
[1767136447073,0.1074281,88537.0,88520.0,0.00016945]
[1767136447277,0.02604488,88536.0,88520.0,0.00016945]
[1767136447572,0.1074281,88537.0,88520.0,0.00016945]
[1767136447768,0.02604517,88536.0,88520.0,0.00016945]
[1767136447965,0.1074281,88537.0,88520.0,0.00016945]
[1767136448163,0.02604517,88536.0,88520.0,0.00016945]
[1767136448373,0.1074281,88537.0,88520.0,0.00016945]
[1767136448563,0.0113083,88535.0,88520.0,0.00016945]
[1767136448763,0.05664,88534.0,88520.0,0.00016945]
[1767136449471,0.0113089,88531.0,88520.0,0.00016945]
[1767136449672,0.05664,88534.0,88520.0,0.00016945]
[1767136451183,0.0113086,88533.0,88520.0,0.00016945]
[1767136452079,0.0113098,88523.0,88520.0,5e-08]
[1767136452381,0.0113109,88515.0,88500.0,0.04518778]
[1767136452578,0.0113092,88528.0,88499.0,0.05664]
[1767136452579,0.0113111,88513.0,88499.0,0.15276]
[1767136453078,0.05664,88520.0,88503.0,0.0113123]
[1767136453280,0.0113108,88515.0,88498.0,0.0679529]
[1767136454374,0.0113108,88515.0,88500.0,0.0113127]
[1767136455182,0.0113105,88518.0,88500.0,0.0113127]
[1767136455581,0.0113108,88515.0,88498.0,0.05664]
[1767136455784,0.18103907,88520.0,88498.0,0.05664]
[1767136456179,0.18103907,88520.0,88498.0,0.0679529]
[1767136456370,0.011311,88514.0,88498.0,0.0679529]
[1767136457577,0.011311,88514.0,88498.0,0.0113129]
[1767136457883,0.0113106,88517.0,88498.0,0.0113129]
[1767136459376,0.0113106,88517.0,88500.0,0.0113126]
[1767136461089,0.0113109,88515.0,88497.0,0.067953]
[1767136461289,0.0113111,88513.0,88497.0,0.067953]
[1767136462286,0.12422962,88510.0,88497.0,0.067953]
[1767136462488,0.12422962,88510.0,88496.0,0.0679532]
[1767136462887,0.011311,88514.0,88498.0,0.0113129]
[1767136463693,0.011311,88514.0,88500.0,0.0113127]
[1767136466279,0.18103907,88520.0,88500.0,0.0113127]
[1767136466685,0.0113109,88515.0,88500.0,0.0113127]
[1767136466997,0.0113109,88515.0,88498.0,0.0113129]
[1767136473195,0.0113109,88515.0,88500.0,0.0113127]
[1767136473499,0.12422962,88510.0,88497.0,0.011313]
[1767136473997,0.0113111,88513.0,88497.0,0.011313]
[1767136475595,0.12422962,88510.0,88499.0,0.0113128]
[1767136476684,0.05680945,88520.0,88498.0,0.0113129]
[1767136476685,0.0113106,88517.0,88498.0,0.0113129]
[1767136480200,0.0113109,88515.0,88498.0,0.0113129]
[1767136482701,0.0113105,88518.0,88500.0,0.0113127]
[1767136482900,0.0113105,88518.0,88502.0,0.0113124]
[1767136484601,0.0113105,88518.0,88496.0,0.05664]
[1767136484602,0.05680945,88520.0,88496.0,0.05664]
[1767136484799,0.18103907,88520.0,88496.0,0.05664]
[1767136484998,0.19234927,88520.0,88496.0,0.05664]
[1767136486504,0.06811965,88520.0,88496.0,0.05664]
[1767136487210,0.06811965,88520.0,88502.0,0.0113123]
[1767136487804,0.0113105,88518.0,88502.0,0.0113123]
[1767136489007,0.0113105,88518.0,88499.0,0.0113128]
[1767136489198,0.0113105,88518.0,88501.0,0.0113125]
[1767136490805,0.05680945,88520.0,88501.0,0.0113125]
[1767136490806,0.0113107,88516.0,88501.0,0.0113125]
[1767136497812,0.0113111,88513.0,88496.0,0.0679531]
[1767136498813,0.09612,88519.0,88496.0,0.05664]
[1767136499108,0.0113137,88493.0,88485.0,0.09612]
[1767136499514,0.01148255,88498.0,88485.0,0.09612]
[1767136499814,0.0113133,88496.0,88482.0,0.05675897]
[1767136500302,0.00016945,88498.0,88482.0,0.05675897]
[1767136500503,0.0113133,88496.0,88482.0,0.05675897]
[1767136500704,0.00016945,88498.0,88482.0,0.05675897]
[1767136500908,0.00016945,88498.0,88482.0,0.06807387]
[1767136501103,0.00016945,88498.0,88486.0,0.0113145]
[1767136501413,0.00016945,88498.0,88487.0,0.0113143]
[1767136503314,0.00016945,88498.0,88489.0,0.0113141]
[1767136507516,0.00016945,88498.0,88482.0,0.01143387]
[1767136507713,0.01148255,88498.0,88482.0,0.00011897]
[1767136512618,0.00016945,88498.0,88483.0,0.0113148]
[1767136512819,0.00016945,88498.0,88491.0,0.0113138]
[1767136513013,0.0113121,88505.0,88488.0,0.0113142]
[1767136513522,0.05664,88506.0,88490.0,0.0113139]
[1767136513707,0.05664,88506.0,88492.0,0.0113137]
[1767136513912,0.05664,88506.0,88482.0,0.00011897]
[1767136514113,0.00016945,88503.0,88485.0,0.00016945]
[1767136514313,0.00016945,88503.0,88485.0,0.09628945]
[1767136515313,0.00016945,88503.0,88491.0,0.0113137]
[1767136516218,0.00016945,88503.0,88485.0,0.15292945]
[1767136516420,0.0113107,88516.0,88498.0,0.0113129]
[1767136516725,0.05664,88515.0,88498.0,0.0113129]
[1767136517526,0.05664,88515.0,88495.0,0.09612]
[1767136517527,0.05680945,88515.0,88495.0,0.09612]
[1767136517828,0.05680945,88515.0,88499.0,0.0113127]
[1767136523128,0.05680945,88515.0,88495.0,0.09612]
[1767136523429,0.0113113,88512.0,88495.0,0.09612]
[1767136524532,0.05680945,88515.0,88485.0,0.00016945]
[1767136524727,0.05680945,88515.0,88487.0,0.0113143]
[1767136524728,0.0113123,88504.0,88487.0,0.0113143]
[1767136525229,0.05680945,88515.0,88489.0,0.0113141]
[1767136525432,0.0113118,88508.0,88493.0,0.0113135]
[1767136525624,0.0113114,88511.0,88493.0,0.0113135]
[1767136528530,0.0113114,88511.0,88485.0,0.00016945]
[1767136528728,0.0113114,88511.0,88493.0,0.0113135]
[1767136528917,0.05680945,88515.0,88493.0,0.0113135]
[1767136529122,0.0113112,88512.0,88493.0,0.0113135]
[1767136531732,0.0113115,88510.0,88493.0,0.0113135]
[1767136531922,0.0113115,88510.0,88486.0,0.15276]
[1767136532523,0.0113111,88513.0,88494.0,0.0113134]
[1767136532724,0.0113113,88511.0,88494.0,0.0113134]
[1767136535843,0.05680945,88515.0,88485.0,0.00016945]
[1767136536030,0.0113136,88493.0,88485.0,0.00016945]
[1767136536340,0.0113133,88496.0,88485.0,0.00016945]
[1767136540241,0.0113129,88499.0,88485.0,0.00016945]
[1767136541433,0.1640725,88502.0,88485.0,0.00016945]
[1767136541642,0.0113127,88501.0,88485.0,0.00016945]
[1767136542736,0.15276,88503.0,88485.0,0.00016945]
[1767136544244,0.011313,88499.0,88485.0,0.00016945]
[1767136545344,0.0113127,88501.0,88485.0,0.00016945]
[1767136545843,0.0113129,88499.0,88485.0,0.00016945]
[1767136546445,0.15276,88503.0,88485.0,0.00016945]
[1767136547241,0.0113125,88502.0,88485.0,0.00016945]
[1767136549545,0.15276,88503.0,88485.0,0.00016945]
[1767136549546,0.15276,88503.0,88489.0,0.0113141]
[1767136551650,0.0113127,88501.0,88485.0,0.09628945]
[1767136552842,0.1640724,88503.0,88486.0,0.0113144]
[1767136553550,0.1640724,88503.0,88489.0,0.0113141]
[1767136553551,0.15276,88503.0,88489.0,0.0113141]
[1767136555152,0.0113125,88502.0,88485.0,0.10760405]
[1767136561551,0.0113128,88500.0,88485.0,0.09628945]
[1767136563858,0.15276,88503.0,88485.0,0.09628945]
[1767136564058,0.0113129,88499.0,88485.0,0.09628945]
[1767136569365,0.0113129,88499.0,88485.0,0.10760405]
[1767136570164,0.15276,88503.0,88485.0,0.09628945]
[1767136570966,0.1640724,88503.0,88490.0,0.13563791]
[1767136571466,0.15276,88503.0,88493.0,0.0113136]
[1767136572068,0.15276,88503.0,88490.0,0.19227791]
[1767136572566,0.0113125,88502.0,88490.0,0.05664]
[1767136572863,0.15276,88503.0,88490.0,0.05664]
[1767136573168,0.1640724,88503.0,88490.0,0.05664]
[1767136573567,0.0113127,88501.0,88490.0,0.05664]
[1767136573963,0.0113122,88505.0,88490.0,0.05664]
[1767136574162,0.02640164,88504.0,88490.0,0.05664]
[1767136574461,0.02640164,88503.0,88490.0,0.05664]
[1767136574662,0.011312,88506.0,88490.0,0.19227791]
[1767136574867,0.02640167,88505.0,88490.0,0.19227791]
[1767136575167,0.0113125,88502.0,88490.0,0.05664]
[1767136575370,0.05664,88508.0,88490.0,0.05664]
[1767136575570,0.12432401,88500.0,88490.0,0.05664]
[1767136575770,0.0113129,88499.0,88485.0,0.00016945]
[1767136575969,0.0113129,88499.0,88486.0,0.15276]
[1767136576270,0.0113129,88499.0,88485.0,0.00016945]
[1767136576469,0.0113129,88499.0,88487.0,0.05664]
[1767136579368,0.12432401,88500.0,88487.0,0.05664]
[1767136580079,0.0113129,88499.0,88487.0,0.05664]
[1767136581661,0.12432401,88500.0,88485.0,0.00016945]
[1767136581662,0.0113138,88492.0,88485.0,0.00016945]
[1767136581867,0.0113138,88492.0,88478.0,0.0113155]
[1767136581868,0.0113163,88473.0,88456.0,0.0113183]
[1767136582169,0.12432401,88468.0,88457.0,0.05664]
[1767136582368,0.011317,88467.0,88457.0,0.05664]
[1767136582773,8.348e-05,88466.0,88453.0,0.00016956]
[1767136582977,8.348e-05,88466.0,88454.0,0.05664]
[1767136583276,8.348e-05,88466.0,88453.0,0.00016956]
[1767136585281,8.348e-05,88466.0,88454.0,0.0113186]
[1767136585872,8.348e-05,88466.0,88453.0,0.00016956]
[1767136586081,8.348e-05,88466.0,88454.0,0.05664]
[1767136586781,8.348e-05,88466.0,88453.0,0.05680956]
[1767136588886,8.348e-05,88466.0,88454.0,0.0113186]
[1767136596187,8.348e-05,88466.0,88456.0,0.0113183]
[1767136598987,8.348e-05,88466.0,88453.0,0.05680956]
[1767136599289,8.348e-05,88466.0,88454.0,0.0113186]
[1767136601394,8.348e-05,88466.0,88457.0,0.0113182]
[1767136601594,8.348e-05,88466.0,88454.0,0.0113186]
[1767136602089,0.12432401,88464.0,88451.0,0.05668]
[1767136602283,8.348e-05,88466.0,88452.0,0.0113189]
[1767136602483,8.348e-05,88466.0,88451.0,0.05668]
[1767136603392,0.0113176,88462.0,88445.0,0.0113196]
[1767136603586,0.0113176,88462.0,88447.0,0.0113195]
[1767136605196,8.348e-05,88466.0,88450.0,0.0113191]
[1767136606192,0.0113172,88465.0,88450.0,0.0113191]
[1767136613090,8.348e-05,88466.0,88450.0,0.0113191]
[1767136615901,8.348e-05,88466.0,88452.0,0.0113188]
[1767136617406,8.348e-05,88466.0,88446.0,0.15284]
[1767136618500,8.348e-05,88466.0,88454.0,0.0113186]
[1767136620506,8.348e-05,88466.0,88454.0,0.0113185]
[1767136621901,8.348e-05,88466.0,88447.0,0.0113195]
[1767136622104,0.06081915,88501.0,88450.0,0.12443685]
[1767136622309,0.0113136,88494.0,88455.0,0.11304544]
[1767136622503,0.09616,88498.0,88456.0,0.15284]
[1767136622504,0.02658534,88493.0,88456.0,0.15284]
[1767136622808,0.02658534,88492.0,88484.0,0.0113148]
[1767136623010,0.12443685,88520.0,88497.0,0.011313]
[1767136623195,0.02657899,88519.0,88489.0,0.0432]
[1767136623505,0.00016956,88517.0,88500.0,0.00016956]
[1767136624005,0.00016956,88517.0,88501.0,0.0113125]
[1767136626003,0.09616,88521.0,88504.0,0.0113122]
[1767136626305,0.09616,88528.0,88510.0,0.0113114]
[1767136626506,0.05668,88532.0,88513.0,0.011311]
[1767136626507,0.09616,88530.0,88513.0,0.011311]
[1767136627210,0.10763836,88530.0,88509.0,0.0113115]
[1767136628007,0.09632946,88530.0,88505.0,0.09616]
[1767136628514,0.00016946,88530.0,88513.0,0.011311]
[1767136628812,0.00016946,88530.0,88513.0,0.067991]
[1767136629010,0.00016946,88530.0,88513.0,0.05668]
[1767136629201,0.09616,88537.0,88513.0,0.05668]
[1767136629710,0.09616,88537.0,88517.0,0.0113105]
[1767136629912,0.09616,88537.0,88520.0,0.01131]
[1767136630107,0.09616,88544.0,88530.0,0.0113089]
[1767136630301,0.05668,88550.0,88530.0,0.0113089]
[1767136630506,0.05668,88550.0,88526.0,0.09616]
[1767136630808,0.09616,88559.0,88539.0,0.0113076]
[1767136631014,0.0113053,88559.0,88536.0,0.09616]
[1767136631211,0.00016946,88556.0,88539.0,0.00016946]
[1767136633715,0.0113072,88543.0,88539.0,6e-08]
[1767136634018,0.0113073,88543.0,88521.0,0.01131]
[1767136634208,0.0113068,88547.0,88521.0,0.01131]
[1767136634908,0.0113068,88547.0,88525.0,0.00016946]
[1767136637010,0.0113072,88544.0,88525.0,0.00016946]
[1767136637419,0.0113067,88548.0,88525.0,0.00016946]
[1767136637611,0.0113057,88555.0,88525.0,0.00016946]
[1767136637811,0.0113057,88555.0,88533.0,0.0113085]
[1767136638120,0.00016946,88556.0,88537.0,0.0113079]
[1767136638719,0.00016946,88556.0,88525.0,0.00016946]
[1767136639217,0.00016946,88556.0,88539.0,0.0113077]
[1767136646219,0.0113058,88555.0,88539.0,0.0113077]
[1767136650517,0.0113061,88552.0,88536.0,0.0113081]
[1767136652024,0.01147506,88556.0,88539.0,0.0113077]
[1767136652230,0.0113058,88554.0,88539.0,0.0113077]
[1767136652421,0.02570653,88553.0,88536.0,0.0113081]
[1767136653624,0.02570653,88553.0,88538.0,0.0113078]
[1767136656522,0.0113061,88552.0,88525.0,0.00016946]
[1767136656826,0.02570653,88551.0,88525.0,0.00016946]
[1767136657219,0.02570653,88550.0,88530.0,0.0113088]
[1767136657418,0.02570653,88549.0,88542.0,0.0113072]
[1767136657617,0.02570653,88548.0,88542.0,0.0113072]
[1767136657824,0.00016946,88556.0,88542.0,0.0113072]
[1767136659115,0.00016946,88556.0,88529.0,0.011309]
[1767136659319,0.00016946,88556.0,88541.0,0.0113075]
[1767136659519,0.00016946,88556.0,88543.0,0.0113072]
[1767136659720,0.0113058,88555.0,88540.0,0.0113076]
[1767136660127,0.00016946,88556.0,88540.0,0.0113076]
[1767136660428,0.01147506,88556.0,88540.0,0.0113076]
[1767136661328,0.0113058,88555.0,88537.0,0.011308]
[1767136661823,0.08139275,88572.0,88525.0,0.00016946]
[1767136661824,0.06081915,88567.0,88538.0,0.0113079]
[1767136662022,0.0113021,88583.0,88564.0,0.0113045]
[1767136662223,0.0113021,88583.0,88543.0,0.0113072]
[1767136662441,0.0113018,88586.0,88564.0,0.0113045]
[1767136662622,0.0113021,88584.0,88564.0,0.0113045]
[1767136662822,0.0113024,88581.0,88564.0,0.0113045]
[1767136663032,0.01147174,88581.0,88564.0,0.00016934]
[1767136663324,0.00016934,88581.0,88564.0,0.00016934]
[1767136663834,0.0113026,88580.0,88564.0,0.00016934]
[1767136664225,0.01147174,88581.0,88564.0,0.00016934]
[1767136664526,0.00016934,88581.0,88564.0,0.00016934]
[1767136665824,0.0113026,88580.0,88564.0,0.00016934]
[1767136666144,0.08139275,88620.0,88565.0,0.11290186]
[1767136666429,0.0112984,88613.0,88588.0,0.0113014]
[1767136666623,0.12443685,88620.0,88577.0,0.0113028]
[1767136666823,0.0113008,88594.0,88567.0,0.0113041]
[1767136667127,0.00016934,88589.0,88572.0,0.00016934]
[1767136668328,0.01147074,88589.0,88572.0,0.00016934]
[1767136668727,0.0113029,88577.0,88572.0,4e-08]
[1767136668927,0.0113029,88577.0,88554.0,0.0113058]
[1767136669124,0.0113037,88571.0,88549.0,0.05540054]
[1767136669327,0.0113032,88575.0,88549.0,0.04409414]
[1767136669944,0.011301,88593.0,88555.0,0.00016934]
[1767136669945,0.00016934,88573.0,88555.0,0.00016934]
[1767136670335,0.0113,88600.0,88555.0,0.00016934]
[1767136670531,0.011302,88585.0,88561.0,0.0113049]
[1767136670733,0.0113026,88580.0,88546.0,0.04039772]
[1767136670935,0.0113026,88580.0,88548.0,0.04039772]
[1767136671236,0.0113026,88580.0,88547.0,0.04039772]
[1767136671438,0.00016934,88575.0,88558.0,0.00016934]
[1767136672230,0.00016934,88575.0,88559.0,0.0113051]
[1767136672433,0.00016934,88575.0,88558.0,0.00016934]
[1767136673438,0.00016934,88575.0,88558.0,0.01147464]
[1767136675437,0.0113004,88597.0,88558.0,0.00016934]
[1767136676231,0.0113023,88582.0,88562.0,0.0113048]
[1767136676433,0.0001127,88581.0,88562.0,0.0113048]
[1767136677446,0.0113025,88580.0,88562.0,0.0113048]
[1767136678140,0.0113029,88577.0,88559.0,0.0113052]
[1767136679642,0.0113029,88577.0,88558.0,0.00016934]
[1767136679643,0.0113002,88598.0,88558.0,0.00016934]
[1767136679842,0.0113019,88585.0,88565.0,0.0113043]
[1767136680044,0.0113019,88585.0,88558.0,0.00016934]
[1767136680045,0.0113028,88578.0,88559.0,0.0113052]
[1767136680243,0.15515065,88590.0,88558.0,0.00016934]
[1767136680541,0.0113052,88560.0,88558.0,4e-08]
[1767136680843,0.0113028,88578.0,88548.0,0.0113065]
[1767136681037,0.15515065,88590.0,88535.0,0.0113082]
[1767136681242,0.0113025,88581.0,88561.0,0.0113048]
[1767136681546,0.0113025,88581.0,88563.0,0.0113046]
[1767136681743,0.00025914,88580.0,88563.0,0.0113046]
[1767136681939,0.00025914,88580.0,88565.0,0.0113043]
[1767136682646,0.00025914,88580.0,88565.0,0.0112543]
[1767136683250,0.00020914,88580.0,88565.0,0.0112543]
[1767136685153,0.00020914,88580.0,88562.0,0.00016934]
[1767136685154,4e-08,88580.0,88570.0,0.0113038]
[1767136686250,4e-08,88580.0,88566.0,0.0113042]
[1767136689653,4e-08,88580.0,88568.0,0.0113039]
[1767136690348,4e-08,88580.0,88562.0,0.00016934]
[1767136690542,4e-08,88580.0,88572.0,0.0113035]
[1767136690745,4e-08,88580.0,88576.0,0.0113029]
[1767136691047,4e-08,88580.0,88573.0,0.0113034]
[1767136692555,4e-08,88580.0,88566.0,0.0113042]
[1767136692854,4e-08,88580.0,88569.0,0.0113039]
[1767136693557,0.0113034,88574.0,88562.0,0.06078958]
[1767136693748,0.0113054,88557.0,88530.0,0.08086528]
[1767136693941,0.0113057,88555.0,88528.0,0.1417816]
[1767136694254,0.011306,88553.0,88536.0,0.011308]
[1767136694453,0.1241891,88550.0,88536.0,0.011308]
[1767136694840,0.00016934,88552.0,88539.0,0.0113077]
[1767136695551,0.00016934,88552.0,88542.0,0.0113073]
[1767136695849,6.527e-05,88556.0,88542.0,0.0113073]
[1767136696957,6.527e-05,88556.0,88539.0,0.0113077]
[1767136701662,6.527e-05,88556.0,88541.0,0.0113074]
[1767136704463,0.0113057,88555.0,88538.0,0.0113078]
[1767136705147,6.527e-05,88556.0,88534.0,0.00016934]
[1767136706258,6.527e-05,88556.0,88539.0,0.0113077]
[1767136708759,0.1241891,88550.0,88534.0,0.00016934]
[1767136708952,0.1241891,88544.0,88534.0,0.00016934]
[1767136709457,0.1354962,88544.0,88518.0,0.08086528]
[1767136709657,0.1241891,88540.0,88517.0,0.08086528]
[1767136709861,0.1241891,88540.0,88527.0,0.0113092]
[1767136714765,0.1241891,88540.0,88525.0,0.00016934]
[1767136714985,0.1241891,88535.0,88525.0,0.00016934]
[1767136715267,6.527e-05,88534.0,88525.0,0.00016934]
[1767136715857,6.527e-05,88534.0,88525.0,0.01147884]
[1767136716569,6.527e-05,88534.0,88525.0,0.00016934]
[1767136723674,0.0113061,88552.0,88525.0,0.00016934]
[1767136723675,0.1241891,88550.0,88525.0,0.00016934]
[1767136724171,0.1241891,88550.0,88535.0,0.0113082]
[1767136724366,0.1241891,88550.0,88525.0,0.00016934]